Cogmind - Beta 11.1 @@@ ROGUE MODE // 2022.05.10 @ 14:56:27 Player: Sara Result: Destroyed by G-34 Mercenary with Small Laser Performance ------------- Evolutions (1) 500 Regions Visited (3) 600 Robots Destroyed (13) 65 Value Destroyed (363) 363 Prototype IDs (3) 60 Alien Tech Used (0) 0 Bonus (200) 200 TOTAL SCORE: 1788 Bonus ------- Pacifist 200 Cogmind --------- Core Integrity 0/400 Matter 290/300 Energy 100/100 System Corruption 0% Temperature Cool (6) Movement Core (200) Ox3 Location -9/Storage Parts ------- > --- POWER (1) -------- (None) > --- PROPULSION (2) --- (None) > --- UTILITY (4) ------ Drone Bay (2/2) > --- WEAPON (2) ------- Improved Medium Laser Improved Assault Rifle > --- INVENTORY (5) ---- ECM Suite Improved Assault Rifle Improved Assault Rifle Mace Peak State ------------ > --- POWER ------------ (None) > --- PROPULSION ------- (None) > --- UTILITY ---------- Drone Bay Drone Bay Drone Bay Drone Bay > --- WEAPON ----------- Improved Assault Rifle > --- INVENTORY -------- ECM Suite Improved Assault Rifle Improved Assault Rifle Improved Assault Rifle Mace [Rating: 24] Favorites ----------- Power None Propulsion None Utility Drone Bay Device Drone Bay Weapon Improved Assault Rifle Energy Gun Improved Medium Laser Ballistic Gun Improved Assault Rifle Launcher Guided Missile Launcher Impact Weapon Mace Build | -11 -10 -9 -9 ------- Run | Scr Mat Mat Sto Slots Evolved 2 | . . 2 . Power . | . . . . Propulsion . | . . . . Utility 2 | . . 2 . Weapon . | . . . . Parts Attached 14 | . 3 1 10 Power . | . . . . Engine . | . . . . Core . | . . . . Reactor . | . . . . Propulsion . | . . . . Treads . | . . . . Leg . | . . . . Wheel . | . . . . Hover . | . . . . Flight . | . . . . Utility 6 | . 1 . 5 Device 6 | . 1 . 5 Storage . | . . . . Processor . | . . . . Hackware . | . . . . Protection . | . . . . Artifact . | . . . . Weapon 8 | . 2 1 5 Energy Gun 1 | . . . 1 Energy Cannon . | . . . . Ballistic Gun 3 | . . . 3 Ballistic Cannon . | . . . . Launcher 1 | . . . 1 Special Weapon . | . . . . Impact Weapon 3 | . 2 1 . Slashing Weapon . | . . . . Piercing Weapon . | . . . . Special Melee Weapon . | . . . . Unidentified Prototypes 3 | . . . 3 Parts Lost 1 | . . 1 . Power . | . . . . Propulsion . | . . . . Utility . | . . . . Weapon 1 | . . 1 . Highest Loss Streak 1 | . . 1 . To Critical Strikes . | . . . . Average Slot Usage (%) 18 | . 14 11 24 Device 5 | . 11 . 8 Energy Gun 1 | . . . 2 Ballistic Gun 6 | . . . 13 Impact Weapon 4 | . 2 11 . Naked Turns 13 | . 9 1 3 Heaviest Build 21 | . 4 2 21 Greatest Support 3 | 3 3 3 3 Greatest Overweight (x) 6 | . 1 . 6 Average Overweight (x) . | . . . . Largest Inventory Capacity 5 | 5 5 5 5 Average Capacity 5 | 5 5 5 5 Most Carried 5 | . 2 2 5 Average Carried 2 | . . 1 4 Final Capacity 5 | 5 5 5 5 Final Carried 4 | . 2 1 4 Class Distribution -------------------- 100% | Mutant Dominant Class ---------------- Mutant | -10/Materials Mutant | -9/Materials Mutant | -9/Storage Resources | -11 -10 -9 -9 ----------- Run | Scr Mat Mat Sto Matter Collected 401 | . . 216 185 Remotely . | . . . . Salvage Created 507 | . . 189 318 Parts 25 | . . 8 17 Haulers Intercepted 1 | . . . 1 Recyclers Shooed . | . . . . Parts Field Recycled . | . . . . Retrieved Matter . | . . . . Parts Self-Destructed . | . . . . Prevented . | . . . . Kills | -11 -10 -9 -9 ------- Run | Scr Mat Mat Sto Combat Hostiles Destroyed 10 | . . 4 6 Melee 3 | . . 3 . Guns 6 | . . . 6 Classes Destroyed 5 | . . 3 2 Worker 2 | . . 2 . Hauler 1 | . . . 1 Swarmer 1 | . . 1 . Grunt 6 | . . . 6 Sentry 3 | . . 3 . Best Kill Streak 4 | . . 3 4 Combat Bots Only 4 | . . 3 4 Max Kills in Single Turn 1 | . . 1 1 Gunslinging . | . . . . Exploded . | . . . . Melee 1 | . . 1 . Uniques/NPCs Destroyed . | . . . . Combat | -11 -10 -9 -9 -------- Run | Scr Mat Mat Sto Damage Taken 715 | 2 49 509 155 Core 438 | 2 25 388 23 Absorbed by Shields . | . . . . Core Remaining (%) 94 | 99 89 . . Volleys Fired 17 | . . . 17 Largest 2 | . . . 2 Hottest 46 | . . . 46 Shots Fired 27 | . . . 27 Gun 27 | . . . 27 Cannon . | . . . . Launcher . | . . . . Special . | . . . . Kinetic 27 | . . . 27 Thermal . | . . . . Explosive . | . . . . Electromagnetic . | . . . . Robot Hit Streak 10 | . . . 10 Robot Miss Streak 2 | . . . 2 Penetration Max . | . . . . Secondary Targets 1 | . . . 1 Max Gunslinging Chain 1 | . . . 1 Shots Hit Robots 38 | . . 18 20 Core Hits 15 | . . 3 12 Critical Kills . | . . . . Critical Parts Destroyed 4 | . . 4 . Critical Strikes 4 | . . 4 . Smash 4 | . . 4 . Melee Attacks 27 | . 1 26 . Impact 27 | . 1 26 . Slashing . | . . . . Piercing . | . . . . Sneak Attacks 4 | . . 4 . Combat Hostiles . | . . . . Follow-up Attacks . | . . . . Damage Inflicted 853 | 4 . 534 315 Guns 315 | . . . 315 Cannons . | . . . . Explosions . | . . . . Melee 534 | . . 534 . Ramming 4 | 4 . . . Kinetic 315 | . . . 315 Thermal . | . . . . Explosive . | . . . . Electromagnetic . | . . . . Impact 534 | . . 534 . Slashing . | . . . . Piercing . | . . . . Highest Corruption . | . . . . Average Corruption . | . . . . Corruption Purged . | . . . . Corruption Blocked . | . . . . Overload Shots . | . . . . Overflow Damage 172 | . . 172 . Projectiles . | . . . . Explosions . | . . . . Melee 172 | . . 172 . Knockbacks . | . . . . Impact . | . . . . Kinetic . | . . . . Secondary . | . . . . Self-Inflicted Damage 2 | 2 . . . Shots . | . . . . Rammed 1 | 1 . . . Targets Rammed 1 | 1 . . . Kicked . | . . . . Crushed . | . . . . Highest Temperature 1 | . . 1 . Average Temperature 1 | . . 1 . Received Heat Transfer 273 | . 27 162 84 Siege Activations . | . . . . Robots Corrupted . | . . . . Combat Hostiles . | . . . . Parts Fried 4 | . . 4 . Impact Corruptions 11 | . . 11 . Robots Melted . | . . . . Combat Hostiles . | . . . . Parts Melted . | . . . . Heat Transferred . | . . . . Parts Sabotaged . | . . . . Parts Stolen . | . . . . Parts Stripped . | . . . . Power Chain Reactions . | . . . . Missiles Intercepted . | . . . . Alert | -11 -10 -9 -9 ------- Run | Scr Mat Mat Sto Peak Influence 279 | . 45 267 279 Initial 112 | . . 18 112 Average 145 | . 27 120 197 Maximum Alert Level 1 | . . 1 1 Low Security (%) 70 | 100 100 85 52 Level 1 29 | . . 14 47 Level 2 . | . . . . Level 3 . | . . . . Level 4 . | . . . . Level 5 . | . . . . High Security . | . . . . Max Security . | . . . . Squads Dispatched 5 | . 1 1 3 Investigation 3 | . 1 1 1 Extermination . | . . . . Reinforcement 2 | . . . 2 Assault . | . . . . Garrison . | . . . . Intercept . | . . . . Searches Triggered . | . . . . Construction Impeded . | . . . . Haulers Reinforced . | . . . . Active Scanning Responses . | . . . . Cargo Convoy Interrupts . | . . . . Stealth | -11 -10 -9 -9 --------- Run | Scr Mat Mat Sto Distress Signals 2 | . 1 . 1 Communications Jammed . | . . . . Distress Signals . | . . . . Times Spotted 22 | . 3 10 9 Peak Tracking Total 4 | . 3 4 2 Tactical Retreats 4 | . 1 2 1 Traps | -11 -10 -9 -9 ------- Run | Scr Mat Mat Sto Traps Triggered 2 | . 1 . 1 Indirectly . | . . . . Trap Hack Attempts . | . . . . Triggered . | . . . . Disarmed . | . . . . Reprogrammed . | . . . . Reused . | . . . . Traps Extracted . | . . . . Installed . | . . . . Triggered . | . . . . Machines | -11 -10 -9 -9 ---------- Run | Scr Mat Mat Sto Machines Disabled 1 | . . 1 . Max in Single Turn 1 | . . 1 . Machines Sabotaged . | . . . . Garrisons Compromised . | . . . . Overloaded Fab Kills . | . . . . Hacking | -11 -10 -9 -9 --------- Run | Scr Mat Mat Sto Machines Accessed 8 | . . 4 4 Terminals 8 | . . 4 4 Fabricators . | . . . . Repair Stations . | . . . . Recycling Units . | . . . . Scanalyzers . | . . . . Garrison Access . | . . . . Total Hacks 20 | . . 12 8 Successful 8 | . . 4 4 Failed 12 | . . 8 4 Catastrophic 5 | . . 3 2 Database Lockouts . | . . . . Manual 7 | . . 7 . Terminals 20 | . . 12 8 Fabricators . | . . . . Repair Stations . | . . . . Recycling Units . | . . . . Scanalyzers . | . . . . Garrison Access . | . . . . Terminal Hacks 8 | . . 4 4 Robot Analysis 1 | . . 1 . Open Door 4 | . . . 4 Alert Level 1 | . . 1 . Dispatch Records 1 | . . 1 . Zone Layout 1 | . . 1 . Fabricator Hacks . | . . . . Repair Station Hacks . | . . . . Recycling Unit Hacks . | . . . . Scanalyzer . | . . . . Garrison Access Hacks . | . . . . Unauthorized Hacks . | . . . . Terminals . | . . . . Fabricators . | . . . . Repair Stations . | . . . . Recycling Units . | . . . . Scanalyzers . | . . . . Garrison Access . | . . . . Data Cores Recovered . | . . . . Used . | . . . . Hacking Detections 6 | . . 3 3 Full Trace Events 2 | . . 2 . Feedback Events . | . . . . Feedback Blocked . | . . . . Robot Schematics Acquired . | . . . . Robots Built . | . . . . Authchips . | . . . . Time . | . . . . Total Robot Build Rating . | . . . . Part Schematics Acquired . | . . . . Parts Built . | . . . . Authchips . | . . . . Time . | . . . . Total Part Build Rating . | . . . . Parts Repaired . | . . . . Time . | . . . . Parts Recycled . | . . . . Recycled Matter . | . . . . Retrieved Matter . | . . . . Retrieved Components . | . . . . Parts Scanalyzed . | . . . . Part Schematics Acquired . | . . . . Parts Damaged . | . . . . Bothacking | -11 -10 -9 -9 ------------ Run | Scr Mat Mat Sto Used RIF Installer . | . . . . Robots Hacked . | . . . . Non-combat . | . . . . Combat . | . . . . Robot Hacks Applied . | . . . . Relay Couplers Released . | . . . . Fabnet Peak Effective % . | . . . . Robots Rewired . | . . . . Allies Hacked . | . . . . Hacks Repelled . | . . . . Allies | -11 -10 -9 -9 -------- Run | Scr Mat Mat Sto Total Allies . | . . . . Largest Group . | . . . . Highest-Rated Group . | . . . . Highest-Rated Ally . | . . . . Total Orders . | . . . . Ally Attacks . | . . . . Total Damage . | . . . . Kills . | . . . . Allies Corrupted . | . . . . Allies Melted . | . . . . Intel | -11 -10 -9 -9 ------- Run | Scr Mat Mat Sto Robot Analysis Total 1 | . . 1 . Derelict Logs Recovered . | . . . . Drone Launches 8 | . . . 8 Drone Recoveries 2 | . . . 2 Exploration | -11 -10 -9 -9 ------------- Run | Scr Mat Mat Sto Turns Passed 477 | 9 56 174 238 Spaces Moved 459 | 17 91 178 173 Core 459 | 17 91 178 173 Treads . | . . . . Legs . | . . . . Wheels . | . . . . Hover . | . . . . Flight . | . . . . Fastest Speed 50 | 50 50 50 50 Average Speed 68 | 50 52 50 97 Slowest Speed 350 | 50 100 50 350 Overloaded Moves . | . . . . Propulsion Burnouts . | . . . . Robots Hopped . | . . . . Cave-ins Triggered . | . . . . Exploration Rate (%) 19 | 3 26 24 24 Regions Visited 3 Branch Regions 1 Pre-discovered Areas . | . . . . Known Exits Taken . | . . . . Unknown Exits Taken 3 | 1 1 1 . Scrap Searched . | . . . . Spaces Dug 3 | . . 3 . Terrain Destroyed 3 | . . 3 . Melee 3 | . . 3 . Projectile . | . . . . AOE . | . . . . Terrain Rammed . | . . . . Walls Destroyed . | . . . . Machines Disabled . | . . . . Actions | -11 -10 -9 -9 --------- Run | Scr Mat Mat Sto Total 545 | 17 96 216 216 Wait 17 | . . 12 5 Move 456 | 16 90 177 173 Hop . | . . . . Pick Up 3 | . . . 3 Fast Attach 12 | . 3 . 9 Attach 2 | . . 1 1 Detach 3 | . 2 . 1 Swap . | . . . . Drop 7 | . . . 7 Fire 17 | . . . 17 Melee 27 | . 1 26 . Ram 1 | 1 . . . Kick . | . . . . Crush . | . . . . Escape Stasis . | . . . . Rewire . | . . . . Trap . | . . . . Miscellaneous . | . . . . Route ------- -11/Scrapyard -10/Materials -9/Materials -9/Storage History --------- Turn | Location | Event 3 | -11/Scrapyard | Discovered new exit (range 15) 10 | -11/Scrapyard | Entered Materials 48 | -10/Materials | Discovered new exit (range 12) 66 | -10/Materials | Entered another Materials area 66 | -9/Materials | Evolved 2 slots: Utility x2 204 | -9/Materials | Core integrity fell below 50% 223 | -9/Materials | Core integrity fell below 20% 234 | -9/Materials | Discovered new exit (range 7) 240 | -9/Materials | Entered Storage 281 | -9/Storage | Found Prototype Launcher 281 | -9/Storage | Identified Gui. Missile Launcher 305 | -9/Storage | Build established: Mutant 478 | -9/Storage | Destroyed by G-34 Mercenary with Small Laser Last Messages --------------- 00369_ U-05 Engineer builds a Door. 00373_ Acquired 41 matter. 00382_ Acquired 6 matter. 00387_ G-34 Mercenary destroyed. 00388_ Acquired 6 matter. 00393_ G-34 Mercenary destroyed. 00394_ Acquired 6 matter. 00397_ O-16 Technician: "IFF HANDSHAKE FAILED. SECURING TERMINAL." 00398_ A-02 Transporter destroyed. 00401_ Acquired 6 matter. 00402_ ALERT: Hostiles spotted, dispatching reinforcements to Terminal S003. 00409_ Dropped Imp. Assault Rifle. 00410_ Acquired Prototype Energy Gun. 00410_ Identified Imp. Medium Laser. 00419_ Connecting with Door Terminal... >>Open(Door) Sealed Heavy Doors opened. 00438_ R-06 Scavenger collects Aluminum Leg. 00469_ W-16 Scout sends out distress signal. Map ----- +----------------------------------------------------+ | ?????????????????????????????????????????????????? | | ?????????????????????????????????????????????????? | | ?????????????????????????????????????????????????? | | ?????????????????????????????????????????????????? | | ????????????????????????????????????????????? ??? | | ????????????????????????????????????????????? ??? | | ????????????????????????????????????????????? ??? | | ????????????????????????????????????????????# ??? | | ????????????????????????????????????????????# ??? | | ???????????????????????????????????? ???????# ??? | | ???????????????????????????????????? ???????# ??? | | ???????????????????????????????????#+##?????# ??? | | ??????????????????????????????????# +?????# #?? | | ??????????????????????????????????# #?????/ #?? | | ??????????????????????????????????+ #?????# #?? | | ??????????????????????????????????#^^^#?????# #?? | | ????????????????????#?????????????+ #?????# #?? | | ????????????#???????# ????????????# #?????# #?? | | ????????????# ]]?#??# ????????????# #?????# #?? | | ????????????? " ?# ???????????# #?????# #?? | | ?????????????? # g???????????# #?????# #?? | | ?????????????????" k ?????????## ##?????# ### | | ????????????????????# ########## #?????# | | ????????????????????# u #?????# ### | | ????????????????????# n T #?????# #?? | | ????????????????????# @ nnn #?????# #?? | | ????????????????????# ########## #?????#[#?? | | ????????????????????# ???????????# ###?????#=### | | ?????????????????????????????????# #???????#%/[ | | ?????????????????????????????????# #???????#=#=! | | ??????????????????????????######## #########%### | | ??????????????????????????# ![[**% ##! | | ??????????????????????????# ![%[%=##! | | ??????????????????????????# [* [[ ##! | | ??????????????????????????################+######! | | ?????????????????????????????????????##### #???## | | ?????????????????????????????????????#!!! #????? | | ?????????????????????????????????????#!!! #????? | | ?????????????????????????????????????#####T##????? | | ?????????????????????????????????????????###?????? | | ?????????????????????????????????????????????????? | | ?????????????????????????????????????????????????? | | ?????????????????????????????????????????????????? | | ?????????????????????????????????????????????????? | | ?????????????????????????????????????????????????? | | ?????????????????????????????????????????????????? | | ?????????????????????????????????????????????????? | | ?????????????????????????????????????????????????? | | ?????????????????????????????????????????????????? | | ?????????????????????????????????????????????????? | +----------------------------------------------------+ Best States ------------- Heat Dissipation 28 Energy Generation 5 Energy Capacity 100 Matter Stores 300 Matter Capacity 300 Sight Range 16 Terrain Scan Density 10 ECM Strength 1 Evasion (%) 50 Item Schematics ----------------- None Robot Schematics ------------------ None Fabricated ------------ Nothing Alien Tech Used ----------------- None Achievements -------------- None Challenges ------------ None Game ------ Seed DeuteriumSensorNanosword Manual? 0 Play Time 00:07:54 Cumulative 99.5 hours Start 2022.05.10 @ 14:50:39 End 2022.05.10 @ 14:56:27 Sessions 1 Manual Loads 0 Difficulty Rogue Special Mode None Game No. 122 Rogue 122 Adventurer 0 Explorer 0 Win Type - Total 1 Types 1/0/0/0/0/0/0/0/0 Lore% 58 Gallery% 55 Achievement% 48 Wizard Run 0 Options --------- ASCII 0 Keyboard 0 Movement Numpad Keybinds 0 Fullscreen 1 Font 18/X11Bold Map View 76x50 Tactical HUD 1 Map Filters NONE Filters NONE Steam X RUN: f04448df-27fd-42df-af30-4d6f237033dd